bitfinex-derivatives/quotes_SOLF0:USTF0_20260222
["timestamp","ask_amount","ask_price","bid_price","bid_amount"]
[1771739229085,8.76825568,84.843,84.801,4.81272909]
[1771739229282,8.76825568,84.842,84.801,4.81272909]
[1771739229481,3.06067723,84.847,84.801,4.81272909]
[1771739229785,3.12346589,84.845,84.801,4.81272909]
[1771739229985,11.8904358,84.844,84.801,4.81272909]
[1771739230186,8.76854199,84.843,84.801,4.81272909]
[1771739230387,10.9753449,84.862,84.773,2.05119137]
[1771739230388,3.12189381,84.858,84.811,4.81272909]
[1771739230576,8.76921135,84.857,84.811,4.81272909]
[1771739230776,8.76921135,84.856,84.811,4.81272909]
[1771739230979,8.76921135,84.855,84.811,4.81272909]
[1771739231181,8.76921135,84.854,84.811,4.81272909]
[1771739231384,8.76921135,84.853,84.811,4.81272909]
[1771739231585,3.12189381,84.857,84.811,4.81272909]
[1771739231784,8.76886239,84.856,84.811,4.81272909]
[1771739231982,8.76886239,84.855,84.811,4.81272909]
[1771739232188,8.76886239,84.854,84.811,4.81272909]
[1771739232383,8.76886239,84.853,84.811,4.81272909]
[1771739232582,2.97133836,84.856,84.811,4.81272909]
[1771739232783,8.76821534,84.855,84.811,4.81272909]
[1771739232984,8.76821534,84.854,84.811,4.81272909]
[1771739233185,2.97133836,84.856,84.811,4.81272909]
[1771739233381,8.76762368,84.855,84.811,4.81272909]
[1771739233584,8.76762368,84.854,84.811,4.81272909]
[1771739233785,2.97133836,84.856,84.811,4.81272909]
[1771739234086,11.80055341,84.855,84.811,4.81272909]
[1771739234286,8.76762368,84.854,84.813,5.0523794]
[1771739234585,3.03292973,84.855,84.813,5.0523794]
[1771739234785,3.03292973,84.853,84.813,5.0523794]
[1771739238284,21.5834449,84.875,84.8,2.49039325]
[1771739238484,3.08683994,84.873,84.821,5.0523794]
[1771739239682,3.08683994,84.873,84.823,5.0523794]
[1771739241086,23.22403618,84.883,84.841,5.0523794]
[1771739241985,3.16437003,84.882,84.841,5.0523794]
[1771739242386,2.49039325,84.88,84.841,5.0523794]
[1771739245792,3.16437003,84.882,84.849,5.0523794]
[1771739245988,2.49039325,84.89,84.849,5.0523794]
[1771739246194,3.23657273,84.889,84.849,5.0523794]
[1771739247390,3.23657273,84.889,84.851,5.0523794]
[1771739248394,8.74402928,84.913,84.855,5.0523794]
[1771739248595,2.49039325,84.88,84.831,5.19821549]
[1771739248799,2.49039325,84.88,84.846,5.19821549]
[1771739248999,2.49039325,84.89,84.846,5.19821549]
[1771739249500,2.49039325,84.9,84.863,5.22348028]
[1771739250298,2.49039325,84.91,84.868,5.2234145]
[1771739250895,2.49039325,84.88,84.831,5.2234145]
[1771739251201,2.49039325,84.87,84.831,5.2234145]
[1771739251797,2.49039325,84.87,84.84,10.6124]
[1771739251997,10.6051,84.899,84.84,10.6124]
[1771739251998,2.49039325,84.88,84.84,10.6124]
[1771739252701,2.49039325,84.88,84.84,15.84177028]
[1771739253002,0.02932228,84.879,84.84,15.84177028]
[1771739253502,2.49039325,84.87,84.84,15.84177028]
[1771739253896,2.49039325,84.87,84.841,5.14395943]
[1771739254097,0.03078523,84.869,84.831,5.1438875]
[1771739256694,2.49039325,84.86,84.831,5.1438875]
[1771739257302,0.15496374,84.859,84.828,10.6139]
[1771739257605,10.9753449,84.902,84.773,2.05119137]
[1771739257606,0.15496374,84.839,84.801,5.08386654]
[1771739257903,9.325e-05,84.83,84.801,5.08386654]
[1771739258097,2.49039325,84.82,84.79,5.08354481]
[1771739259004,9.325e-05,84.8,84.766,5.05618194]
[1771739259506,0.21696933,84.808,84.766,5.05618194]
[1771739260704,0.21696933,84.808,84.772,10.6209]
[1771739261302,2.49039325,84.8,84.766,5.05618194]
[1771739261609,2.49039325,84.8,84.751,5.11635519]
[1771739261610,0.09918718,84.799,84.751,5.11635519]
[1771739262004,0.10063212,84.789,84.758,10.6226]
[1771739262208,0.10063212,84.789,84.751,5.11635519]
[1771739262704,8.72757891,84.84,84.751,5.11635519]
[1771739262903,0.10063212,84.806,84.763,5.11628111]
[1771739263806,0.10063212,84.806,84.768,10.6213]
[1771739264004,0.10063212,84.806,84.763,5.11628111]
[1771739264205,10.9753449,84.852,84.687,176.0]
[1771739264206,0.0334558,84.789,84.741,5.15116726]
[1771739272818,2.49039325,84.79,84.741,5.15116726]
[1771739272819,0.02795749,84.787,84.741,5.15116726]
[1771739274416,0.03703772,84.779,84.731,5.15525975]
[1771739276311,10.6196,84.783,84.731,5.15525975]
[1771739276512,10.6196,84.783,84.741,5.15683719]
[1771739277412,2.49039325,84.78,84.741,5.15683719]
[1771739277718,8.63821851,84.829,84.741,5.15683719]
[1771739277719,2.49039325,84.8,84.741,5.15683719]
[1771739278215,2.49039325,84.81,84.741,5.15683719]
[1771739278515,2.49039325,84.8,84.741,5.15683719]
[1771739278717,10.6179,84.796,84.741,5.15683719]
[1771739278912,2.49039325,84.82,84.75,2.49039325]
[1771739279112,2.49039325,84.81,84.751,5.38703987]
[1771739279311,10.6163,84.809,84.753,5.38703987]
[1771739280109,2.49039325,84.8,84.753,5.38703987]
[1771739282013,2.49039325,84.8,84.755,5.3577542]
[1771739282816,10.6163,84.809,84.755,5.3577542]
[1771739283819,10.6163,84.809,84.759,5.34969414]
[1771739286822,2.49283863,84.8,84.759,5.34969414]
[1771739287919,10.6163,84.809,84.761,5.29917977]
[1771739291830,2.49283863,84.81,84.761,5.29917977]
[1771739298330,10.6164,84.808,84.761,5.29917977]
[1771739301039,2.49283863,84.78,84.708,22.05358524]
[1771739301239,4.84250738,84.779,84.73,2.49283863]
[1771739302729,15.46270738,84.778,84.73,2.49283863]
[1771739302944,15.46270738,84.778,84.731,4.7323776]
[1771739304540,4.84250738,84.778,84.731,4.7323776]
[1771739308341,2.49283863,84.79,84.716,24.10595608]
[1771739308342,4.82217436,84.796,84.741,4.7323776]
[1771739308743,4.82217436,84.796,84.75,2.49283863]
[1771739308941,4.82217436,84.796,84.751,4.7323776]
[1771739309639,10.6181,84.795,84.751,4.7323776]
[1771739313242,2.49283863,84.8,84.751,4.7323776]
[1771739314143,10.6166,84.807,84.751,4.7323776]
[1771739314348,4.74368414,84.806,84.751,4.7323776]
[1771739315848,2.49283863,84.8,84.751,4.7323776]
[1771739316049,4.72182119,84.799,84.751,4.7323776]
[1771739316348,4.72182119,84.789,84.751,4.7323776]
[1771739325061,4.72182119,84.789,84.733,4.67245703]
[1771739325263,4.81439354,84.786,84.741,4.67245703]
[1771739325765,4.81439354,84.779,84.741,4.67245703]
[1771739329969,4.81439354,84.779,84.698,29.43500901]
[1771739329970,4.78230876,84.791,84.751,4.67245703]
[1771739330667,4.78230876,84.791,84.75,2.49283863]
[1771739330668,4.78230876,84.791,84.753,4.67245703]
[1771739331172,4.56747885,84.806,84.761,4.67245703]
[1771739331470,4.56747885,84.803,84.761,4.67245703]
[1771739331670,13.34276133,84.802,84.761,4.67245703]
[1771739331870,8.77528248,84.801,84.761,4.67245703]
[1771739332171,4.56447988,84.83,84.781,4.67245703]
[1771739333669,10.6144,84.825,84.781,4.67245703]
[1771739334869,15.12185419,84.825,84.781,4.67245703]
[1771739335769,4.53384377,84.824,84.781,4.67245703]
[1771739346578,4.53384377,84.824,84.782,4.67245703]
[1771739347278,4.53384377,84.824,84.785,4.67245703]
[1771739348283,4.53384377,84.824,84.788,4.99653661]
[1771739349474,4.53384377,84.824,84.79,4.99653661]
[1771739349879,4.53384377,84.824,84.791,10.6184]
[1771739350084,4.53384377,84.824,84.791,15.61493661]
[1771739350383,4.53384377,84.824,84.792,4.99653661]
[1771739357589,2.49105439,84.83,84.792,4.99653661]
[1771739357888,4.47932353,84.834,84.792,4.99653661]
[1771739358187,4.47932353,84.834,84.8,4.81541661]
[1771739358488,4.47718355,84.847,84.801,4.81541661]
[1771739359683,4.47718355,84.847,84.811,10.616]
[1771739359884,4.47718355,84.847,84.812,4.81541661]
[1771739360685,2.49105439,84.85,84.812,4.81541661]
[1771739360882,4.46268676,84.856,84.817,4.81541661]
[1771739361688,4.43218626,84.867,84.821,4.81541661]
[1771739363280,2.49105439,84.86,84.821,4.81541661]
[1771739363884,4.43218626,84.867,84.821,4.81541661]
[1771739364286,4.43218626,84.867,84.824,4.81541661]
[1771739365292,4.43218626,84.867,84.826,15.42951661]
[1771739365492,7.03618483,84.86,84.826,15.42951661]
[1771739365993,4.54324158,84.875,84.836,4.81541661]
[1771739366189,2.49105439,84.92,84.871,5.04868996]
[1771739367687,2.49105439,84.92,84.815,22.05358524]
[1771739367688,2.49105439,84.89,84.821,5.17544506]
[1771739367893,2.49105439,84.89,84.841,5.17544506]
[1771739368996,2.69131783,84.89,84.841,5.17544506]
[1771739369495,0.20026344,84.889,84.841,5.17544506]
[1771739370297,0.20026344,84.889,84.846,4.95078972]
[1771739371797,0.07448659,84.876,84.846,4.95078972]
[1771739372300,0.07448659,84.876,84.847,10.6115]
[1771739372593,0.07448659,84.876,84.79,4.92198268]
[1771739372798,0.07448659,84.876,84.831,4.92198268]
[1771739373194,0.26238247,84.879,84.831,4.92198268]
[1771739373792,0.26238247,84.879,84.837,4.9209446]
[1771739374700,0.26238247,84.879,84.83,2.49105439]
[1771739374701,0.26238247,84.879,84.84,4.9208892]
[1771739375603,0.21674852,84.869,84.832,10.6134]
[1771739377304,0.21674852,84.869,84.832,15.45195913]
[1771739379598,0.21674852,84.869,84.837,10.6127]
[1771739380201,2.49105439,84.88,84.843,10.6119]
[1771739381808,0.07445569,84.87,84.843,10.6119]
[1771739386914,0.07445569,84.87,84.844,5.02270066]
[1771739389812,0.07445569,84.87,84.85,10.6111]
[1771739390012,0.10051427,84.893,84.851,5.02270066]
[1771739390718,0.10051427,84.893,84.853,5.02270066]
[1771739393711,0.10051427,84.893,84.859,5.02270066]
[1771739394916,2.49105439,84.9,84.859,5.02270066]
[1771739395520,0.18691588,84.903,84.859,5.02270066]
[1771739396512,0.18691588,84.903,84.86,2.49105439]
[1771739396717,0.18691588,84.903,84.861,5.02270066]
[1771739397823,0.18691588,84.903,84.869,5.02270066]
[1771739398724,0.18691588,84.903,84.87,15.63130066]
[1771739398924,0.18691588,84.903,84.878,0.0744574]
[1771739400126,2.49105439,84.91,84.878,0.0744574]
[1771739400819,2.49105439,84.92,84.879,5.02270066]
[1771739401216,2.72076126,84.92,84.879,5.02270066]
[1771739401420,0.22970687,84.919,84.879,5.02270066]
[1771739401826,0.22970687,84.919,84.881,5.02270066]
[1771739402220,0.22970687,84.919,84.861,5.02270066]
[1771739402524,0.2309886,84.909,84.861,5.02270066]
[1771739403524,2.49105439,84.92,84.876,5.02270066]
[1771739403725,8.71987533,84.919,84.876,5.02270066]
[1771739403926,8.71987533,84.918,84.876,5.02270066]
[1771739404130,2.49105439,84.92,84.876,5.02270066]
[1771739404419,8.72098171,84.919,84.876,5.02270066]
[1771739404621,8.72098171,84.918,84.876,5.02270066]
[1771739404830,2.49105439,84.92,84.876,5.02270066]
[1771739405126,8.72098534,84.919,84.876,5.02270066]
[1771739405325,8.72098534,84.918,84.876,5.02270066]
[1771739405625,8.72098534,84.917,84.876,5.02270066]
[1771739405822,2.49105439,84.92,84.881,5.02270066]
[1771739406020,8.72232392,84.919,84.881,5.02270066]
[1771739406221,8.72232392,84.918,84.881,5.02270066]
[1771739406425,8.72232392,84.917,84.881,5.02270066]
[1771739406627,2.49105439,84.92,84.881,5.02270066]
[1771739406926,8.72373899,84.919,84.881,5.02270066]
[1771739407127,8.72373899,84.918,84.881,5.02270066]
[1771739407328,8.72373899,84.917,84.881,5.02270066]
[1771739407524,2.49105439,84.92,84.881,5.02270066]
[1771739407725,8.72397786,84.919,84.881,5.02270066]
[1771739407922,8.72397786,84.918,84.881,5.02270066]
[1771739408122,8.72397786,84.917,84.881,5.02270066]
[1771739408323,2.49105439,84.92,84.881,5.02270066]
[1771739408625,0.25485071,84.909,84.863,4.94709353]
[1771739408823,0.25485071,84.907,84.863,4.94709353]
[1771739409227,8.72495938,84.906,84.863,4.94709353]
[1771739409427,0.25485071,84.907,84.863,4.94709353]
[1771739409627,8.97512624,84.906,84.863,4.94709353]
[1771739409828,0.25015776,84.906,84.865,4.95001134]
[1771739410127,0.25132701,84.917,84.87,2.48678987]
[1771739410430,8.72613353,84.916,84.871,4.94996375]
[1771739410630,0.25132701,84.917,84.871,4.94996375]
[1771739410930,8.72595259,84.916,84.871,4.94996375]
[1771739411126,0.25132701,84.917,84.871,4.94996375]
[1771739411731,0.25132701,84.917,84.876,4.92954414]
[1771739412332,8.72703509,84.916,84.876,4.92954414]
[1771739412629,0.25132701,84.917,84.876,4.92954414]
[1771739412831,8.72703099,84.916,84.876,4.92954414]
[1771739413034,0.25132701,84.917,84.876,4.92954414]
[1771739413538,0.31310743,84.899,84.86,4.92954414]
[1771739414031,0.31310743,84.899,84.888,0.07445602]
[1771739414428,0.31310743,84.899,84.86,4.92954414]
[1771739417127,2.48678987,84.89,84.86,4.92954414]
[1771739417332,0.31310743,84.899,84.86,4.92954414]
[1771739418144,0.31310743,84.899,84.871,0.07457901]
[1771739423735,2.48678987,84.89,84.871,0.07457901]
[1771739426538,0.31310743,84.899,84.871,0.07457901]
[1771739426735,8.84888474,84.898,84.871,0.07457901]
[1771739426936,8.74947149,84.897,84.871,0.07457901]
[1771739427238,0.09941325,84.898,84.871,0.07457901]
[1771739427438,8.75016959,84.897,84.871,0.07457901]
[1771739427638,0.09941325,84.898,84.871,0.07457901]
[1771739427839,8.75016959,84.897,84.871,0.07457901]
[1771739428038,0.09941325,84.898,84.871,0.07457901]
[1771739428232,8.75016723,84.897,84.871,0.07457901]
[1771739428433,0.09941325,84.898,84.871,0.07457901]
[1771739428632,8.75089382,84.897,84.871,0.07457901]
[1771739428928,0.09941325,84.898,84.871,0.07457901]
[1771739429129,8.75089382,84.897,84.871,0.07457901]
[1771739429327,0.09941325,84.898,84.871,0.07457901]
[1771739429537,8.75165692,84.897,84.871,0.07457901]
[1771739429734,0.09941325,84.898,84.871,0.07457901]
[1771739429936,8.75164982,84.897,84.871,0.07457901]
[1771739430232,8.75261031,84.896,84.871,0.07457901]
[1771739430438,0.09941325,84.898,84.871,0.07457901]
[1771739430630,8.7527755,84.897,84.871,0.07457901]
[1771739430834,8.7769583,84.896,84.871,0.07457901]
[1771739431030,0.0241828,84.896,84.871,0.07457901]
[1771739432255,8.75449974,84.895,84.871,0.07457901]
[1771739432434,0.0241828,84.896,84.871,0.07457901]
[1771739432635,8.75449974,84.895,84.871,0.07457901]
[1771739432835,0.0241828,84.896,84.871,0.07457901]
[1771739434034,0.06822841,84.889,84.871,0.07457901]
[1771739434341,2.48678987,84.88,84.85,5.05363437]
[1771739442244,0.06822841,84.889,84.85,5.05363437]
[1771739443046,0.08496577,84.879,84.831,5.05344937]
[1771739443945,0.07447676,84.863,84.831,5.05344937]
[1771739446147,0.08496577,84.879,84.831,5.05344937]
[1771739446543,13.34437209,84.9,84.851,4.96829202]
[1771739446743,0.25268222,84.899,84.851,4.96829202]
[1771739447348,2.48678987,84.89,84.851,4.96829202]
[1771739448051,2.48678987,84.89,84.862,0.07444994]
[1771739448450,0.25359383,84.897,84.862,0.07444994]
[1771739449252,0.22410585,84.894,84.862,0.07444994]
[1771739457357,0.22410585,84.894,84.862,5.07704127]
[1771739458960,10.6058,84.893,84.862,5.07704127]
[1771739461065,10.6061,84.891,84.862,5.07704127]
[1771739462565,0.19347754,84.892,84.862,5.07704127]
[1771739471570,2.48716188,84.9,84.862,5.07704127]
[1771739472574,8.78455138,84.899,84.862,5.07704127]
[1771739472771,8.78455138,84.898,84.862,5.07704127]
[1771739472969,8.78455138,84.897,84.862,5.07704127]
[1771739473172,8.78455138,84.896,84.862,5.07704127]
[1771739473372,8.78455138,84.895,84.862,5.07704127]
[1771739473572,8.78455138,84.894,84.862,5.07704127]
[1771739473872,8.78455138,84.893,84.862,5.07704127]
[1771739474173,8.78455138,84.892,84.862,5.07704127]
[1771739474371,8.78455138,84.891,84.862,5.07704127]
[1771739474572,8.78455138,84.89,84.862,5.07704127]
[1771739474773,8.78455138,84.889,84.862,5.07704127]
[1771739475075,8.78455138,84.888,84.862,5.07704127]
[1771739475270,10.6048,84.901,84.862,5.07704127]
[1771739475476,8.78684788,84.9,84.862,5.07704127]
[1771739475676,8.78684788,84.899,84.862,5.07704127]
[1771739475975,8.78684788,84.898,84.862,5.07704127]
[1771739476175,8.78684788,84.897,84.862,5.07704127]
[1771739476477,8.78684788,84.896,84.862,5.07704127]
[1771739476673,8.78684788,84.895,84.862,5.07704127]
[1771739476874,8.78684788,84.894,84.862,5.07704127]
[1771739477074,8.78684788,84.893,84.862,5.07704127]
[1771739477274,8.78684788,84.892,84.862,5.07704127]
[1771739477474,8.78684788,84.891,84.862,5.07704127]
[1771739477677,8.78684788,84.89,84.862,5.07704127]
[1771739477874,8.78684788,84.889,84.862,5.07704127]
[1771739478074,8.78684788,84.888,84.862,5.07704127]
[1771739478279,0.12550481,84.9,84.862,5.07704127]
[1771739478476,0.12550481,84.898,84.862,5.07704127]
[1771739478679,8.78687082,84.897,84.862,5.07704127]
[1771739478977,8.78687082,84.896,84.862,5.07704127]
[1771739479177,8.78687082,84.895,84.862,5.07704127]
[1771739479479,8.78687082,84.894,84.862,5.07704127]
[1771739479783,8.78687082,84.893,84.862,5.07704127]
[1771739479975,8.78687082,84.892,84.862,5.07704127]
[1771739480176,8.78687082,84.891,84.862,5.07704127]
[1771739480379,0.12550481,84.898,84.862,5.07704127]
[1771739480380,8.78687082,84.89,84.862,5.07704127]
[1771739480682,8.78687082,84.889,84.862,5.07704127]
[1771739480878,8.78687082,84.888,84.862,5.07704127]
[1771739481079,10.73009012,84.897,84.862,5.07704127]
[1771739481282,8.78721286,84.896,84.862,5.07704127]
[1771739481480,8.78721286,84.895,84.862,5.07704127]
[1771739481674,8.78721286,84.894,84.862,5.07704127]
[1771739481875,8.78721286,84.893,84.862,5.07704127]
[1771739482078,8.78721286,84.892,84.862,5.07704127]
[1771739482279,8.78721286,84.891,84.862,5.07704127]
[1771739482482,8.78721286,84.89,84.862,5.07704127]
[1771739482773,8.78721286,84.889,84.862,5.07704127]
[1771739483081,10.73009012,84.897,84.862,5.07704127]
[1771739483082,8.78721286,84.888,84.862,5.07704127]
[1771739483276,0.12789648,84.896,84.862,5.07704127]
[1771739483576,8.78716289,84.895,84.862,5.07704127]
[1771739483777,8.78716289,84.894,84.862,5.07704127]
[1771739483978,8.78716289,84.893,84.862,5.07704127]
[1771739484171,8.78716289,84.892,84.862,5.07704127]
[1771739484370,8.78716289,84.891,84.862,5.07704127]
[1771739484572,8.78716289,84.89,84.862,5.07704127]
[1771739484770,0.12789648,84.896,84.862,5.07704127]
[1771739484771,8.78716289,84.889,84.862,5.07704127]
[1771739485076,0.12789648,84.896,84.862,5.07704127]
[1771739485276,8.78741292,84.895,84.862,5.07704127]
[1771739485477,8.78741292,84.894,84.862,5.07704127]
[1771739485678,8.78741292,84.893,84.862,5.07704127]
[1771739485877,0.12789648,84.896,84.862,5.07704127]
[1771739485878,8.78741292,84.892,84.862,5.07704127]
[1771739486080,8.78741292,84.891,84.862,5.07704127]
[1771739486280,8.78741292,84.89,84.862,5.07704127]
[1771739486480,0.12789648,84.896,84.862,5.07704127]
[1771739486681,8.78578066,84.895,84.862,5.07704127]
[1771739486882,8.78578066,84.894,84.862,5.07704127]
[1771739487074,8.78578066,84.893,84.862,5.07704127]
[1771739487279,8.78578066,84.892,84.862,5.07704127]
[1771739487480,8.78578066,84.891,84.862,5.07704127]
[1771739487681,8.78578066,84.89,84.862,5.07704127]
[1771739487981,0.12789648,84.896,84.862,5.07704127]
[1771739488183,8.78219478,84.895,84.862,5.07704127]
[1771739488380,8.78219478,84.894,84.862,5.07704127]
[1771739488580,8.78219478,84.893,84.862,5.07704127]
[1771739488880,8.78219478,84.892,84.862,5.07704127]
[1771739489081,8.78219478,84.891,84.862,5.07704127]
[1771739489275,8.78219478,84.89,84.862,5.07704127]
[1771739489480,8.78219478,84.889,84.862,5.07704127]
[1771739489679,8.78420252,84.888,84.862,5.07704127]
[1771739489984,0.12789648,84.896,84.862,5.07704127]
[1771739490188,8.78437569,84.895,84.862,5.07704127]
[1771739490384,8.78437569,84.894,84.862,5.07704127]
[1771739490584,8.78437569,84.893,84.862,5.07704127]
[1771739490786,8.78437569,84.892,84.862,5.07704127]
[1771739490984,8.78437569,84.891,84.862,5.07704127]
[1771739491185,8.78437569,84.89,84.862,5.07704127]
[1771739491385,8.78437569,84.889,84.862,5.07704127]
[1771739491586,8.78437569,84.888,84.862,5.07704127]
[1771739491783,8.78437569,84.887,84.862,5.07704127]
[1771739491979,8.78437569,84.886,84.862,5.07704127]
[1771739492184,0.12789648,84.896,84.862,5.07704127]
[1771739492383,8.79045888,84.895,84.862,5.07704127]
[1771739492582,8.79045888,84.894,84.862,5.07704127]
[1771739492784,8.79045888,84.893,84.862,5.07704127]
[1771739492985,8.79045888,84.892,84.862,5.07704127]
[1771739493281,8.79045888,84.891,84.862,5.07704127]
[1771739493485,8.79045888,84.89,84.862,5.07704127]
[1771739493685,0.12789648,84.896,84.862,5.07704127]
[1771739493686,8.79045888,84.889,84.862,5.07704127]
[1771739493886,8.79045888,84.888,84.862,5.07704127]
[1771739494086,8.79045888,84.887,84.862,5.07704127]
[1771739494386,8.79045888,84.886,84.862,5.07704127]
[1771739494690,0.12789648,84.896,84.862,5.07704127]
[1771739494891,8.79042524,84.895,84.862,5.07704127]
[1771739495092,9.00691764,84.894,84.862,5.07704127]
[1771739495393,8.79042524,84.893,84.862,5.07704127]
[1771739495585,8.79042524,84.892,84.862,5.07704127]
[1771739495786,8.79042524,84.891,84.862,5.07704127]
[1771739495985,0.2164924,84.894,84.862,5.07704127]
[1771739495986,8.79042524,84.89,84.862,5.07704127]
[1771739496191,8.79042524,84.889,84.862,5.07704127]
[1771739496390,8.79042524,84.888,84.862,5.07704127]
[1771739496685,0.2164924,84.894,84.862,5.07704127]
[1771739496686,8.79042524,84.887,84.862,5.07704127]
[1771739496992,0.21728261,84.906,84.862,5.07704127]
[1771739497191,0.21705612,84.904,84.862,5.07704127]
[1771739497389,9.00850312,84.903,84.862,5.07704127]
[1771739497594,8.791447,84.902,84.862,5.07704127]
[1771739497784,8.791447,84.901,84.862,5.07704127]
[1771739497988,8.791447,84.9,84.871,5.00196492]
[1771739498189,0.21564544,84.922,84.871,5.00196492]
[1771739498390,8.78926417,84.921,84.871,5.00196492]
[1771739498590,8.78926417,84.92,84.871,5.00196492]
[1771739498791,8.78926417,84.919,84.871,5.00196492]
[1771739498992,8.78926417,84.918,84.871,5.00196492]
[1771739499294,0.21564544,84.921,84.845,22.0565317]
[1771739499295,8.78926417,84.917,84.881,5.06437018]
[1771739499491,8.78926417,84.916,84.881,5.06437018]
[1771739499795,8.78926417,84.915,84.881,5.06437018]
[1771739499990,8.78926417,84.914,84.881,5.06437018]
[1771739500191,8.78926417,84.913,84.881,5.06437018]
[1771739500390,10.6027,84.918,84.881,5.06437018]
[1771739500592,8.70196998,84.917,84.881,5.06437018]
[1771739500891,8.70196998,84.916,84.881,5.06437018]
[1771739501092,10.6027,84.918,84.881,5.06437018]
[1771739501395,8.69902851,84.917,84.881,5.06437018]
[1771739501591,10.6027,84.918,84.881,5.06437018]
[1771739501787,8.69902851,84.917,84.881,5.06437018]
[1771739501987,10.6027,84.918,84.881,5.06437018]
[1771739502890,8.69662085,84.917,84.881,5.06437018]
[1771739503095,10.6027,84.918,84.881,5.06437018]
[1771739503296,2.48716188,84.92,84.881,5.06437018]
[1771739503593,8.69459748,84.919,84.881,5.06437018]
[1771739503789,8.69459748,84.918,84.881,5.06437018]
[1771739503994,2.63980783,84.92,84.881,5.06437018]
[1771739504195,8.69459678,84.919,84.881,5.06437018]
[1771739504394,2.63980783,84.92,84.881,5.06437018]
[1771739504596,8.69285229,84.919,84.881,5.06437018]
[1771739504795,2.63980783,84.92,84.881,5.06437018]
[1771739505001,8.69284927,84.919,84.881,5.06437018]
[1771739505187,2.63980783,84.92,84.881,5.06437018]
[1771739505392,8.69153452,84.919,84.881,5.06437018]
[1771739505691,2.63980783,84.92,84.881,5.06437018]
[1771739505887,8.69153405,84.919,84.881,5.06437018]
[1771739506089,0.15264595,84.92,84.881,5.06437018]
[1771739513399,0.15264595,84.92,84.884,5.05499763]
[1771739514307,0.15264595,84.92,84.885,10.6067]
[1771739514806,0.15264595,84.92,84.886,5.05498941]
[1771739518511,2.63980783,84.92,84.886,5.05498941]
[1771739520216,2.48716188,84.92,84.886,5.05498941]
[1771739520912,2.48716188,84.92,84.842,22.0565317]
[1771739520913,164.50015505,84.934,84.891,5.085834]
[1771739521111,0.05589707,84.949,84.891,5.085834]
[1771739521420,0.0566923,84.958,84.904,5.08561143]
[1771739521614,8.74315092,84.957,84.904,5.08561143]
[1771739521810,0.05691131,84.955,84.904,5.08561143]
[1771739522013,8.68645862,84.954,84.904,5.08561143]
[1771739522214,8.68645862,84.953,84.904,5.08561143]
[1771739522414,0.05691131,84.955,84.904,5.08561143]
[1771739522415,8.68645862,84.952,84.904,5.08561143]
[1771739522615,8.68645862,84.951,84.904,5.08561143]
[1771739522810,0.05691131,84.955,84.906,5.0856055]
[1771739523012,8.68285156,84.954,84.906,5.0856055]
[1771739523218,8.68285156,84.953,84.906,5.0856055]
[1771739523516,8.68285156,84.952,84.906,5.0856055]
[1771739523718,0.05691131,84.955,84.906,5.0856055]
[1771739523912,8.68072568,84.954,84.906,5.0856055]
[1771739524112,8.68072568,84.953,84.906,5.0856055]
[1771739524313,0.05691131,84.955,84.906,5.0856055]
[1771739543725,10.5979,84.956,84.906,5.0856055]
[1771739544225,31.02567007,84.985,84.906,5.0856055]
[1771739544226,2.48365485,84.95,84.906,5.0856055]
[1771739545829,10.5992,84.946,84.906,5.0856055]
[1771739553237,2.48365485,84.95,84.906,5.0856055]
[1771739564242,10.598,84.956,84.906,5.0856055]
[1771739566249,10.599,84.948,84.906,5.0856055]
[1771739571449,10.5973,84.961,84.906,5.0856055]
[1771739571749,2.48365485,84.96,84.906,5.0856055]
[1771739575953,2.48365485,84.96,84.908,5.29288501]
[1771739577553,10.5981,84.955,84.908,5.29288501]
[1771739579251,20.04412268,84.985,84.908,5.29288501]
[1771739579252,10.5965,84.968,84.908,5.29288501]
[1771739579555,10.5965,84.968,84.896,10.6053]
[1771739579556,10.5965,84.968,84.911,5.28874219]
[1771739580256,10.5976,84.959,84.911,5.28874219]
[1771739592769,20.04412268,84.985,84.878,209.39264689]
[1771739592770,10.5989,84.949,84.902,5.34253935]
[1771739600181,8.69472688,84.948,84.902,5.34253935]
[1771739600374,8.69472688,84.947,84.902,5.34253935]
[1771739600671,10.5996,84.943,84.902,5.34253935]
[1771739600869,8.69472688,84.942,84.902,5.34253935]
[1771739601073,8.69472688,84.941,84.902,5.34253935]
[1771739601275,8.69472688,84.94,84.902,5.34253935]
[1771739601465,8.69472688,84.939,84.902,5.34253935]
[1771739601669,8.69472688,84.938,84.902,5.34253935]
[1771739601870,8.69472688,84.937,84.902,5.34253935]
[1771739602171,10.5981,84.955,84.902,5.34253935]
[1771739602372,8.69296252,84.954,84.902,5.34253935]
[1771739602573,8.69296252,84.953,84.902,5.34253935]
[1771739602773,8.69296252,84.952,84.902,5.34253935]
[1771739603078,8.69296252,84.951,84.902,5.34253935]
[1771739603277,10.5981,84.955,84.902,5.34253935]
[1771739603278,8.69296252,84.95,84.902,5.34253935]
[1771739603577,8.69296252,84.949,84.902,5.34253935]
[1771739603779,10.5981,84.955,84.902,5.34253935]
[1771739603780,8.69296252,84.948,84.902,5.34253935]
[1771739604076,8.69296252,84.947,84.902,5.34253935]
[1771739604277,8.69296252,84.946,84.902,5.34253935]